{"text_format":"1","workbook":"xlsx","n_sheets":14,"sheets":["Cover","Info","Results","E01","E02","E03","E04","E05","E06","E07","E08","E09","E10","About"],"not_rendered":{"charts":11,"images":39,"macros":1,"external_links":0,"defined_names":15,"comments":0,"pivot_tables":0},"unopened":[],"bounds":{"document_bytes":16777216,"sheet_cells":100000,"rows_first":2000,"rows_last":500,"rows_between":2000,"halvings":0,"cell_chars":16384,"cell_head_chars":4096},"cells_cut":0,"cells_raw":0,"read":"whole","date_system":"1900"}

{"sheet":"Cover","index":0,"n_rows":0,"n_cols":0,"rows_kept":0,"cut":false,"hidden":false,"merged":[]}

{"sheet":"Info","index":1,"n_rows":39,"n_cols":4,"rows_kept":39,"cut":false,"hidden":false,"merged":[[0,0,0,16383],[38,1,38,3],[39,1,39,3],[2,1,2,2],[3,1,3,2],[4,1,4,2],[5,1,5,2],[6,1,6,2],[37,1,37,3],[31,1,31,2],[32,1,32,2],[33,1,33,2],[34,1,34,2],[35,1,35,2]]}
[]
[]
[null,"评估",null,"回应"]
[null,"城市名 :"]
[null,"城市类型（如市政、大都市地区等）:"]
[null,"国家 :"]
[null,"评估日期 :"]
[]
[null,"城市资料（必填）","回应","来源日期"]
[null,"最高级别的职位头衔（例如市长等）"]
[null,"城市总人口：  "]
[null,"城市总面积："]
[null,"人口密度（每平方公里）："]
[null,"青年（15-24）人口（％）："]
[null,"老年（65+）人口（％）："]
[null,"性别（女性户主家庭）："]
[null,"识字率（识字人口百分比）："]
[null,"贫困率（非贫困人口百分比）："]
[null,"家庭平均收入（美元）："]
[null,"非公民居民（％）："]
[null,"最容易（可能）发生的已知灾难风险："]
[null,"最严重的灾难（已知）："]
[]
[null,"城市资料（选填）","回应","来源日期"]
[null,"总户数："]
[null,"每户人口："]
[null,"生活费用（美元）："]
[null,"国家人均GDP（美元）"]
[null,"基尼系数："]
[null,"人均城市产出（美元）："]
[]
[null,"地方政府减灾与防灾团队",null,"回应"]
[null,"领导/协调记分卡评估的人员姓名："]
[null,"组织："]
[null,"联系信息："]
[null,"分享结果或被UNDRR及其合作伙伴用作示例/案例研究的意愿度："]
[]
[null,"利息相关者信息"]
[null,"请在下面列出所有支持此评估的利益相关者。"]

{"sheet":"Results","index":2,"n_rows":152,"n_cols":13,"rows_kept":152,"cut":false,"hidden":false,"merged":[[113,1,113,3],[96,2,96,5],[104,2,104,5],[105,2,105,5],[99,2,99,5],[111,1,111,2],[34,2,34,5],[89,2,89,5],[90,2,90,5],[91,2,91,5],[41,2,41,5],[42,2,42,5],[43,2,43,5],[52,2,52,5],[59,2,59,5],[65,2,65,5],[57,3,57,6],[39,3,39,6],[63,3,63,6],[69,3,69,6],[77,3,77,6],[73,2,73,5],[71,2,71,5],[72,2,72,5],[74,2,74,5],[94,3,94,5],[102,3,102,6],[97,2,97,5],[98,2,98,5],[79,2,79,5],[80,2,80,5],[81,2,81,5]]}
[]
[]
[]
[]
[]
[]
[]
[]
[]
[]
[]
[]
[]
[]
[]
[]
[]
[]
[]
[]
[]
[]
[]
[]
[]
[]
[]
[]
[]
[]
[]
[]
[null,"第01要素：",null,{"$f":"D118","v":"为恢复力做组织 - 公共卫生和治理的整合"}]
[]
[null,{"$f":"C130","v":"A1.1"},{"$f":"E130","v":"卫生部门是多部门灾害风险管理治理的一部分"},null,null,null,{"$f":"F130","v":0}]
[]
[]
[]
[]
[null,"第02要素：",null,{"$f":"D119","v":"识别、理解并使用当前和未来的风险方案 - 公共卫生和灾害情况的整合"}]
[]
[null,{"$f":"C131","v":"A2.1"},{"$f":"E131","v":"自行将一系列紧急情况和灾害（例如疾病暴发/流行病、饥荒、缺水等）纳入灾害情况 "},null,null,null,{"$f":"F131","v":0}]
[null,{"$f":"C132","v":"A2.2"},{"$f":"E132","v":"包含其他灾害风险情况（例如洪水、高温事件、地震）中可预见的公共健康影响 "},null,null,null,{"$f":"F132","v":0}]
[null,{"$f":"C133","v":"A2.3"},{"$f":"E133","v":"将包括非传染性疾病在内的既往慢性健康状况纳入灾害规划"},null,null,null,{"$f":"F133","v":0}]
[]
[]
[]
[]
[]
[]
[null,"第03要素：",null,{"$f":"D120","v":"增强财务抵御能力 - 公共卫生和财政的整合"}]
[]
[null,{"$f":"C134","v":"A3.1"},{"$f":"E134","v":"为恢复力的公共卫生方面提供资金支持 "},null,null,null,{"$f":"F134","v":0}]
[]
[]
[]
[]
[null,"第04要素 : ",null,{"$f":"D121","v":"追求恢复城市发展 - 公共卫生与土地使用/建筑法规的整合"}]
[]
[null,{"$f":"C135","v":"A4.1"},{"$f":"E135","v":"带有恢复土地分区的关键卫生设施和建筑法规的一致性 "},null,null,null,{"$f":"F135","v":0}]
[]
[]
[]
[null,"第05要素 :",null,{"$f":"D122","v":"保护天然缓冲以增强自然生态系统提供的保护功能 - 影响公共卫生的生态系统服务管理"}]
[]
[null,{"$f":"C136","v":"A5.1"},{"$f":"E136","v":"对可提供公共卫生利益的生态系统服务的保护和管理 "},null,null,null,{"$f":"F136","v":0}]
[]
[]
[]
[null,"第06要素 : ",null,{"$f":"D123","v":"增强机构抗灾能力 - 公共卫生和机构能力的整合"}]
[]
[null,{"$f":"C137","v":"A6.1"},{"$f":"E137","v":"具有相关胜任力和抗灾能力的公共卫生劳动力的可用性"},null,null,null,{"$f":"F137","v":0}]
[null,{"$f":"C138","v":"A6.2"},{"$f":"E138","v":"与其他利益相关者共享公共卫生系统数据 "},null,null,null,{"$f":"F138","v":0}]
[null,{"$f":"C139","v":"A6.2.1"},{"$f":"E139","v":"与其他公共卫生系统的利益相关者共享其他数据 "},null,null,null,{"$f":"F139","v":0}]
[null,{"$f":"C140","v":"A6.2.2"},{"$f":"E140","v":"保护和访问个人健康记录 "},null,null,null,{"$f":"F140","v":0}]
[]
[]
[null,"第07要素 : ",null,{"$f":"D124","v":"理解并增强社会恢复能力 - 公共卫生和社会能力的整合"}]
[]
[null,{"$f":"C141","v":"A7.1"},{"$f":"E141","v":"灾害风险管理背景下公共卫生系统在社区参与中的有效性 "},null,null,null,{"$f":"F141","v":0}]
[null,{"$f":"C142","v":"A7.1.2"},{"$f":"E142","v":"社区对公共卫生信息的获取和信任 "},null,null,null,{"$f":"F142","v":0}]
[null,{"$f":"C143","v":"A7.2"},{"$f":"E143","v":"社区“恢复正常”的能力 – 心理健康 "},null,null,null,{"$f":"F143","v":0}]
[]
[]
[]
[]
[]
[null,"第08要素 : ",null,{"$f":"D125","v":"提高基础设施的恢复力 - 公共卫生和基础设施恢复力的整合"}]
[]
[null,{"$f":"C144","v":"A8.1"},{"$f":"E144","v":"加强要素8中未考虑的公共卫生基础设施项目的结构和非结构安全性与功能性 "},null,null,null,{"$f":"F144","v":0}]
[null,{"$f":"C145","v":"A8.2"},{"$f":"E145","v":"要素8中未考虑的公共卫生基础设施的过载能力 "},null,null,null,{"$f":"F145","v":0}]
[null,{"$f":"C146","v":"A8.3"},{"$f":"E146","v":"在要素8中未考虑的那些已病人员的持续护理。"},null,null,null,{"$f":"F146","v":0}]
[]
[]
[null,"第09要素 : ",null,{"$f":"D126","v":"确保有效的灾难响应 - 公共卫生和灾害响应的整合"}]
[]
[null,{"$f":"C147","v":"A9.1"},{"$f":"E147","v":"与卫生相关的紧急情况的预警系统 "},null,null,null,{"$f":"F147","v":0}]
[null,{"$f":"C148","v":"A9.2"},{"$f":"E148","v":"公共卫生和应急管理的整合 "},null,null,null,{"$f":"F148","v":0}]
[null,{"$f":"C149","v":"A9.3"},{"$f":"E149","v":"对高风险人群或患有既往疾病、居住在家的人群的考虑 "},null,null,null,{"$f":"F149","v":0}]
[null,{"$f":"C150","v":"A9.4"},{"$f":"E150","v":"为有需要的人提供公共卫生用品的能力。"},null,null,null,{"$f":"F150","v":0}]
[]
[]
[null,"第10要素 : ",null,{"$f":"D127","v":"加快恢复并进行更优重建 - 公共卫生和恢复/更好重建的整合"}]
[]
[null,{"$f":"C151","v":"A10.1"},{"$f":"E151","v":"减轻对公共卫生和幸福水平的长期影响"},null,null,null,{"$f":"F151","v":0}]
[null,{"$f":"C152","v":"A10.2"},{"$f":"E152","v":"学习与改善 "},null,null,null,{"$f":"F152","v":0}]
[]
[]
[]
[]
[]
[null,{"$f":"TODAY()","v":"2021-04-08"},null,null,null,null,null,{"$f":"Info!$B$4","v":"城市名 :"},{"$f":"Info!$D$4","v":0},null,{"$f":"Info!$B$6","v":"国家 :"},{"$f":"Info!$D$6","v":0}]
[]
[]
[]
[]
[null,null,"Label","Name",null,"Essential","TotalScore","MaxScore","Label"]
[null,null,"S1","为恢复力做组织 - 公共卫生和治理的整合",null,"E1",{"$f":"SUMIFS($F$130:$F$189,$B$130:$B$189,F118)","v":0},{"$f":"COUNTIFS($B$130:$B$152,F118)*5","v":5},"01",null,{"$f":"SUM(G118:G127)","v":0},{"$f":"K118/K119","v":0},{"$f":"CONCATENATE(\"该评估的整体分数为 \",SUM(G118:G127),\" / \",SUM(H118:H127))","v":"该评估的整体分数为 0 / 115"}]
[null,null,"S2","识别、理解并使用当前和未来的风险方案 - 公共卫生和灾害情况的整合",null,"E2",{"$f":"SUMIFS($F$130:$F$1010,$B$130:$B$1010,F119)","v":0},15,"02",null,{"$f":"SUM(H118:H127)","v":115},{"$f":"1-L118","v":1}]
[null,null,"S3","增强财务抵御能力 - 公共卫生和财政的整合",null,"E3",0,5,"03"]
[null,null,"S4","追求恢复城市发展 - 公共卫生与土地使用/建筑法规的整合",null,"E4",0,5,"04"]
[null,null,"S5","保护天然缓冲以增强自然生态系统提供的保护功能 - 影响公共卫生的生态系统服务管理",null,"E5",0,5,"05"]
[null,null,"S6","增强机构抗灾能力 - 公共卫生和机构能力的整合",null,"E6",0,20,"06"]
[null,null,"S7","理解并增强社会恢复能力 - 公共卫生和社会能力的整合",null,"E7",0,15,"07"]
[null,null,"S8","提高基础设施的恢复力 - 公共卫生和基础设施恢复力的整合",null,"E8",0,15,"08"]
[null,null,"S9","确保有效的灾难响应 - 公共卫生和灾害响应的整合",null,"E9",0,20,"09"]
[null,null,"S10","加快恢复并进行更优重建 - 公共卫生和恢复/更好重建的整合",null,"E10",0,10,"10"]
[]
[null,"Section","Ref",null,"Question","SelectedScore","ThisScore"]
[null,"E1",{"$f":"'E01'!$G$5","v":"A1.1"},null,{"$f":"'E01'!I5","v":"卫生部门是多部门灾害风险管理治理的一部分"},{"$f":"IF(G130=\"\",0,IF(G130=0,0,6-G130))","v":0},{"$f":"OFFSET('E01'!$E$1,MATCH(C130,'E01'!G:G,0)+3,0)","v":0}]
[null,"E2",{"$f":"'E02'!$G$5","v":"A2.1"},null,{"$f":"'E02'!I5","v":"自行将一系列紧急情况和灾害（例如疾病暴发/流行病、饥荒、缺水等）纳入灾害情况 "},{"$f":"IF(G131=\"\",0,IF(G131=0,0,6-G131))","v":0},{"$f":"OFFSET('E02'!$E$1,MATCH(C131,'E02'!G:G,0)+3,0)","v":0}]
[null,"E2",{"$f":"'E02'!$G$18","v":"A2.2"},null,{"$f":"'E02'!$I$18","v":"包含其他灾害风险情况（例如洪水、高温事件、地震）中可预见的公共健康影响 "},0,{"$f":"OFFSET('E02'!$E$1,MATCH(C132,'E02'!G:G,0)+3,0)","v":0}]
[null,"E2",{"$f":"'E02'!$G$31","v":"A2.3"},null,{"$f":"'E02'!$I$31","v":"将包括非传染性疾病在内的既往慢性健康状况纳入灾害规划"},0,{"$f":"OFFSET('E02'!$E$1,MATCH(C133,'E02'!G:G,0)+3,0)","v":0}]
[null,"E3",{"$f":"'E03'!$G$5","v":"A3.1"},null,{"$f":"'E03'!$I$5","v":"为恢复力的公共卫生方面提供资金支持 "},0,{"$f":"OFFSET('E03'!$E$1,MATCH(C134,'E03'!G:G,0)+3,0)","v":0}]
[null,"E4",{"$f":"'E04'!$G$5","v":"A4.1"},null,{"$f":"'E04'!$I$5","v":"带有恢复土地分区的关键卫生设施和建筑法规的一致性 "},0,{"$f":"OFFSET('E04'!$E$1,MATCH(C135,'E04'!G:G,0)+3,0)","v":0}]
[null,"E5",{"$f":"'E05'!$G$5","v":"A5.1"},null,{"$f":"'E05'!$I$5","v":"对可提供公共卫生利益的生态系统服务的保护和管理 "},0,{"$f":"OFFSET('E05'!$E$1,MATCH(C136,'E05'!G:G,0)+3,0)","v":0}]
[null,"E6",{"$f":"'E06'!$G$5","v":"A6.1"},null,{"$f":"'E06'!$I$5","v":"具有相关胜任力和抗灾能力的公共卫生劳动力的可用性"},0,{"$f":"OFFSET('E06'!$E$1,MATCH(C137,'E06'!G:G,0)+3,0)","v":0}]
[null,"E6",{"$f":"'E06'!$G$18","v":"A6.2"},null,{"$f":"'E06'!$I$18","v":"与其他利益相关者共享公共卫生系统数据 "},0,{"$f":"OFFSET('E06'!$E$1,MATCH(C138,'E06'!G:G,0)+3,0)","v":0}]
[null,"E6",{"$f":"'E06'!$G$31","v":"A6.2.1"},null,{"$f":"'E06'!$I$31","v":"与其他公共卫生系统的利益相关者共享其他数据 "},0,{"$f":"OFFSET('E06'!$E$1,MATCH(C139,'E06'!G:G,0)+3,0)","v":0}]
[null,"E6",{"$f":"'E06'!$G$44","v":"A6.2.2"},null,{"$f":"'E06'!$I$44","v":"保护和访问个人健康记录 "},0,{"$f":"OFFSET('E06'!$E$1,MATCH(C140,'E06'!G:G,0)+3,0)","v":0}]
[null,"E7",{"$f":"'E07'!$G$5","v":"A7.1"},null,{"$f":"'E07'!$I$5","v":"灾害风险管理背景下公共卫生系统在社区参与中的有效性 "},0,{"$f":"OFFSET('E07'!$E$1,MATCH(C141,'E07'!G:G,0)+3,0)","v":0}]
[null,"E7",{"$f":"'E07'!$G$18","v":"A7.1.2"},null,{"$f":"'E07'!$I$18","v":"社区对公共卫生信息的获取和信任 "},0,{"$f":"OFFSET('E07'!$E$1,MATCH(C142,'E07'!G:G,0)+3,0)","v":0}]
[null,"E7",{"$f":"'E07'!$G$31","v":"A7.2"},null,{"$f":"'E07'!$I$31","v":"社区“恢复正常”的能力 – 心理健康 "},0,{"$f":"OFFSET('E07'!$E$1,MATCH(C143,'E07'!G:G,0)+3,0)","v":0}]
[null,"E8",{"$f":"'E08'!$G$5","v":"A8.1"},null,{"$f":"'E08'!$I$5","v":"加强要素8中未考虑的公共卫生基础设施项目的结构和非结构安全性与功能性 "},0,{"$f":"OFFSET('E08'!$E$1,MATCH(C144,'E08'!G:G,0)+3,0)","v":0}]
[null,"E8",{"$f":"'E08'!$G$18","v":"A8.2"},null,{"$f":"'E08'!$I$18","v":"要素8中未考虑的公共卫生基础设施的过载能力 "},{"$f":"IF(G145=\"\",0,IF(G145=0,0,6-G145))","v":0},{"$f":"OFFSET('E08'!$E$1,MATCH(C145,'E08'!G:G,0)+3,0)","v":0}]
[null,"E8",{"$f":"'E08'!$G$31","v":"A8.3"},null,{"$f":"'E08'!$I$31","v":"在要素8中未考虑的那些已病人员的持续护理。"},0,{"$f":"OFFSET('E08'!$E$1,MATCH(C146,'E08'!G:G,0)+3,0)","v":0}]
[null,"E9",{"$f":"'E09'!$G$5","v":"A9.1"},null,{"$f":"'E09'!$I$5","v":"与卫生相关的紧急情况的预警系统 "},0,{"$f":"OFFSET('E09'!$E$1,MATCH(C147,'E09'!G:G,0)+3,0)","v":0}]
[null,"E9",{"$f":"'E09'!$G$18","v":"A9.2"},null,{"$f":"'E09'!$I$18","v":"公共卫生和应急管理的整合 "},0,{"$f":"OFFSET('E09'!$E$1,MATCH(C148,'E09'!G:G,0)+3,0)","v":0}]
[null,"E9",{"$f":"'E09'!$G$31","v":"A9.3"},null,{"$f":"'E09'!$I$31","v":"对高风险人群或患有既往疾病、居住在家的人群的考虑 "},0,{"$f":"OFFSET('E09'!$E$1,MATCH(C149,'E09'!G:G,0)+3,0)","v":0}]
[null,"E9",{"$f":"'E09'!$G$44","v":"A9.4"},null,{"$f":"'E09'!$I$44","v":"为有需要的人提供公共卫生用品的能力。"},0,{"$f":"OFFSET('E09'!$E$1,MATCH(C150,'E09'!G:G,0)+3,0)","v":0}]
[null,"E10",{"$f":"'E10'!$G$5","v":"A10.1"},null,{"$f":"'E10'!$I$5","v":"减轻对公共卫生和幸福水平的长期影响"},0,{"$f":"OFFSET('E10'!$E$1,MATCH(C151,'E10'!G:G,0)+3,0)","v":0}]
[null,"E10",{"$f":"'E10'!$G$18","v":"A10.2"},null,{"$f":"'E10'!$I$18","v":"学习与改善 "},0,{"$f":"OFFSET('E10'!$E$1,MATCH(C152,'E10'!G:G,0)+3,0)","v":0}]

{"sheet":"E01","index":3,"n_rows":15,"n_cols":9,"rows_kept":15,"cut":false,"hidden":false,"merged":[[7,2,7,3],[8,2,13,3],[5,2,5,3],[6,2,6,3]]}
["a"]
[]
[null,"A.1 公共卫生和治理的整合（第1要素）\t\t",null,null,null,null,"A.1",null,"公共卫生和治理的整合（第1要素）"]
[]
[null,"A.1.1 卫生部门是多部门灾害风险管理治理的一部分",null,null,null,null,"A1.1",null,"卫生部门是多部门灾害风险管理治理的一部分"]
[null,"问题","评论"]
[]
[null,"回应","提供验证方式（说明和凭据）"]
[null,null,null,null,null,{"$f":"IF(E9=1,TRUE,FALSE)","v":false}]
[null,null,null,null,null,{"$f":"IF(E9=2,TRUE,FALSE)","v":false}]
[null,null,null,null,null,{"$f":"IF(E9=3,TRUE,FALSE)","v":false}]
[null,null,null,null,null,{"$f":"IF(E9=4,TRUE,FALSE)","v":false}]
[null,null,null,null,null,{"$f":"IF(E9=5,TRUE,FALSE)","v":false}]
[null,null,null,null,null,{"$f":"IF(E9=6,TRUE,FALSE)","v":false}]
[null,"为达最大防灾力的行动","负责机构","时间跨度"]

{"sheet":"E02","index":4,"n_rows":41,"n_cols":9,"rows_kept":41,"cut":false,"hidden":false,"merged":[[5,2,5,3],[6,2,6,3],[7,2,7,3],[18,2,18,3],[19,2,19,3],[20,2,20,3],[8,2,13,3],[21,2,26,3],[34,2,39,3],[31,2,31,3],[32,2,32,3],[33,2,33,3]]}
[]
[]
[null,"A.2 公共卫生和灾害情况的整合（要素2）",null,null,null,null,"A.2",null,"公共卫生和灾害情况的整合（要素2）"]
[]
[null,"A2.1 自行将一系列紧急情况和灾害（例如疾病暴发/流行病、饥荒、缺水等）纳入灾害情况 ",null,null,null,null,"A2.1",null,"自行将一系列紧急情况和灾害（例如疾病暴发/流行病、饥荒、缺水等）纳入灾害情况 "]
[null,"问题","评论"]
[]
[null,"回应","提供验证方式（说明和凭据）"]
[null,null,null,null,null,{"$f":"IF(E9=1,TRUE,FALSE)","v":false}]
[null,null,null,null,null,{"$f":"IF(E9=2,TRUE,FALSE)","v":false}]
[null,null,null,null,null,{"$f":"IF(E9=3,TRUE,FALSE)","v":false}]
[null,null,null,null,null,{"$f":"IF(E9=4,TRUE,FALSE)","v":false}]
[null,null,null,null,null,{"$f":"IF(E9=5,TRUE,FALSE)","v":false}]
[null,null,null,null,null,{"$f":"IF(E9=6,TRUE,FALSE)","v":false}]
[null,"为达最大防灾力的行动","负责机构","时间跨度"]
[]
[]
[null,"A2.2 包含其他灾害风险情况（例如洪水、高温事件、地震）中可预见的公共健康影响 ",null,null,null,null,"A2.2",null,"包含其他灾害风险情况（例如洪水、高温事件、地震）中可预见的公共健康影响 "]
[null,"问题","评论"]
[]
[null,"回应","提供验证方式（说明和凭据）"]
[null,null,null,null,null,{"$f":"IF(E22=1,TRUE,FALSE)","v":false}]
[null,null,null,null,null,{"$f":"IF(E22=2,TRUE,FALSE)","v":false}]
[null,null,null,null,null,{"$f":"IF(E22=3,TRUE,FALSE)","v":false}]
[null,null,null,null,null,{"$f":"IF(E22=4,TRUE,FALSE)","v":false}]
[null,null,null,null,null,{"$f":"IF(E22=5,TRUE,FALSE)","v":false}]
[null,null,null,null,null,{"$f":"IF(E22=6,TRUE,FALSE)","v":false}]
[null,"为达最大防灾力的行动","负责机构","时间跨度"]
[]
[]
[null,"A2.3 将包括非传染性疾病在内的既往慢性健康状况纳入灾害规划",null,null,null,null,"A2.3",null,"将包括非传染性疾病在内的既往慢性健康状况纳入灾害规划"]
[null,"问题","评论"]
[]
[null,"回应","提供验证方式（说明和凭据）"]
[null,null,null,null,null,{"$f":"IF(E35=1,TRUE,FALSE)","v":false}]
[null,null,null,null,null,{"$f":"IF(E35=2,TRUE,FALSE)","v":false}]
[null,null,null,null,null,{"$f":"IF(E35=3,TRUE,FALSE)","v":false}]
[null,null,null,null,null,{"$f":"IF(E35=4,TRUE,FALSE)","v":false}]
[null,null,null,null,null,{"$f":"IF(E35=5,TRUE,FALSE)","v":false}]
[null,null,null,null,null,{"$f":"IF(E35=6,TRUE,FALSE)","v":false}]
[null,"为达最大防灾力的行动","负责机构","时间跨度"]

{"sheet":"E03","index":5,"n_rows":15,"n_cols":9,"rows_kept":15,"cut":false,"hidden":false,"merged":[[4,1,4,3],[5,2,5,3],[6,2,6,3],[7,2,7,3],[8,2,13,3]]}
[]
[]
[null,"A3 公共卫生和财政的整合（要素3）",null,null,null,null,"A3",null,"公共卫生和财政的整合（要素3）"]
[]
[null,"A3.1 为恢复力的公共卫生方面提供资金支持 ",null,null,null,null,"A3.1",null,"为恢复力的公共卫生方面提供资金支持 "]
[null,"问题","评论"]
[]
[null,"回应","提供验证方式（说明和凭据）"]
[null,null,null,null,null,{"$f":"IF(E9=1,TRUE,FALSE)","v":false}]
[null,null,null,null,null,{"$f":"IF(E9=2,TRUE,FALSE)","v":false}]
[null,null,null,null,null,{"$f":"IF(E9=3,TRUE,FALSE)","v":false}]
[null,null,null,null,null,{"$f":"IF(E9=4,TRUE,FALSE)","v":false}]
[null,null,null,null,null,{"$f":"IF(E9=5,TRUE,FALSE)","v":false}]
[null,null,null,null,null,{"$f":"IF(E9=6,TRUE,FALSE)","v":false}]
[null,"为达最大防灾力的行动","负责机构","时间跨度"]

{"sheet":"E04","index":6,"n_rows":15,"n_cols":9,"rows_kept":15,"cut":false,"hidden":false,"merged":[[4,1,4,3],[5,2,5,3],[6,2,6,3],[7,2,7,3],[8,2,13,3]]}
[]
[]
[null,"A4 公共卫生与土地使用/建筑法规的整合（要素4）",null,null,null,null,"A4",null,"公共卫生与土地使用/建筑法规的整合（要素4）"]
[]
[null,"A4.1 带有恢复土地分区的关键卫生设施和建筑法规的一致性  ",null,null,null,null,"A4.1",null,"带有恢复土地分区的关键卫生设施和建筑法规的一致性 "]
[null,"问题","评论"]
[]
[null,"回应","提供验证方式（说明和凭据）"]
[null,null,null,null,null,{"$f":"IF(E9=1,TRUE,FALSE)","v":false}]
[null,null,null,null,null,{"$f":"IF(E9=2,TRUE,FALSE)","v":false}]
[null,null,null,null,null,{"$f":"IF(E9=3,TRUE,FALSE)","v":false}]
[null,null,null,null,null,{"$f":"IF(E9=4,TRUE,FALSE)","v":false}]
[null,null,null,null,null,{"$f":"IF(E9=5,TRUE,FALSE)","v":false}]
[null,null,null,null,null,{"$f":"IF(E9=6,TRUE,FALSE)","v":false}]
[null,"为达最大防灾力的行动","负责机构","时间跨度"]

{"sheet":"E05","index":7,"n_rows":15,"n_cols":9,"rows_kept":15,"cut":false,"hidden":false,"merged":[[4,1,4,3],[5,2,5,3],[6,2,6,3],[7,2,7,3],[8,2,13,3]]}
[]
[]
[null,"A5 影响公共卫生的生态系统服务管理（要素5）",null,null,null,null,"A5",null,"影响公共卫生的生态系统服务管理（要素5）"]
[]
[null,"A5.1 对可提供公共卫生利益的生态系统服务的保护和管理 ",null,null,null,null,"A5.1",null,"对可提供公共卫生利益的生态系统服务的保护和管理 "]
[null,"问题","评论"]
[]
[null,"回应","提供验证方式（说明和凭据）"]
[null,null,null,null,null,{"$f":"IF(E9=1,TRUE,FALSE)","v":false}]
[null,null,null,null,null,{"$f":"IF(E9=2,TRUE,FALSE)","v":false}]
[null,null,null,null,null,{"$f":"IF(E9=3,TRUE,FALSE)","v":false}]
[null,null,null,null,null,{"$f":"IF(E9=4,TRUE,FALSE)","v":false}]
[null,null,null,null,null,{"$f":"IF(E9=5,TRUE,FALSE)","v":false}]
[null,null,null,null,null,{"$f":"IF(E9=6,TRUE,FALSE)","v":false}]
[null,"为达最大防灾力的行动","负责机构","时间跨度"]

{"sheet":"E06","index":8,"n_rows":54,"n_cols":9,"rows_kept":54,"cut":false,"hidden":false,"merged":[[4,1,4,3],[5,2,5,3],[6,2,6,3],[7,2,7,3],[17,1,17,3],[8,2,13,3],[18,2,18,3],[47,2,52,3],[34,2,39,3],[21,2,26,3],[19,2,19,3],[20,2,20,3],[30,1,30,3],[31,2,31,3],[32,2,32,3],[33,2,33,3],[43,1,43,3],[44,2,44,3],[45,2,45,3],[46,2,46,3]]}
[]
[]
[null,"A6 公共卫生和机构能力的整合（要素6）",null,null,null,null,"A6",null,"公共卫生和机构能力的整合（要素6）"]
[]
[null,"A6.1 具有相关胜任力和抗灾能力的公共卫生劳动力的可用性",null,null,null,null,"A6.1",null,"具有相关胜任力和抗灾能力的公共卫生劳动力的可用性"]
[null,"问题","评论"]
[]
[null,"回应","提供验证方式（说明和凭据）"]
[null,null,null,null,null,{"$f":"IF(E9=1,TRUE,FALSE)","v":false}]
[null,null,null,null,null,{"$f":"IF(E9=2,TRUE,FALSE)","v":false}]
[null,null,null,null,null,{"$f":"IF(E9=3,TRUE,FALSE)","v":false}]
[null,null,null,null,null,{"$f":"IF(E9=4,TRUE,FALSE)","v":false}]
[null,null,null,null,null,{"$f":"IF(E9=5,TRUE,FALSE)","v":false}]
[null,null,null,null,null,{"$f":"IF(E9=6,TRUE,FALSE)","v":false}]
[null,"为达最大防灾力的行动","负责机构","时间跨度"]
[]
[]
[null,"A6.2 与其他利益相关者共享公共卫生系统数据 ",null,null,null,null,"A6.2",null,"与其他利益相关者共享公共卫生系统数据 "]
[null,"问题","评论"]
[]
[null,"回应","提供验证方式（说明和凭据）"]
[null,null,null,null,null,{"$f":"IF(E22=1,TRUE,FALSE)","v":false}]
[null,null,null,null,null,{"$f":"IF(E22=2,TRUE,FALSE)","v":false}]
[null,null,null,null,null,{"$f":"IF(E22=3,TRUE,FALSE)","v":false}]
[null,null,null,null,null,{"$f":"IF(E22=4,TRUE,FALSE)","v":false}]
[null,null,null,null,null,{"$f":"IF(E22=5,TRUE,FALSE)","v":false}]
[null,null,null,null,null,{"$f":"IF(E22=6,TRUE,FALSE)","v":false}]
[null,"为达最大防灾力的行动","负责机构","时间跨度"]
[]
[]
[null,"A6.2.1 与其他公共卫生系统的利益相关者共享其他数据 ",null,null,null,null,"A6.2.1",null,"与其他公共卫生系统的利益相关者共享其他数据 "]
[null,"问题","评论"]
[]
[null,"回应","提供验证方式（说明和凭据）"]
[null,null,null,null,null,{"$f":"IF(E35=1,TRUE,FALSE)","v":false}]
[null,null,null,null,null,{"$f":"IF(E35=2,TRUE,FALSE)","v":false}]
[null,null,null,null,null,{"$f":"IF(E35=3,TRUE,FALSE)","v":false}]
[null,null,null,null,null,{"$f":"IF(E35=4,TRUE,FALSE)","v":false}]
[null,null,null,null,null,{"$f":"IF(E35=5,TRUE,FALSE)","v":false}]
[null,null,null,null,null,{"$f":"IF(E35=6,TRUE,FALSE)","v":false}]
[null,"为达最大防灾力的行动","负责机构","时间跨度"]
[]
[]
[null,"A6.2.2 保护和访问个人健康记录 ",null,null,null,null,"A6.2.2",null,"保护和访问个人健康记录 "]
[null,"问题","评论"]
[]
[null,"回应","提供验证方式（说明和凭据）"]
[null,null,null,null,null,{"$f":"IF(E48=1,TRUE,FALSE)","v":false}]
[null,null,null,null,null,{"$f":"IF(E48=2,TRUE,FALSE)","v":false}]
[null,null,null,null,null,{"$f":"IF(E48=3,TRUE,FALSE)","v":false}]
[null,null,null,null,null,{"$f":"IF(E48=4,TRUE,FALSE)","v":false}]
[null,null,null,null,null,{"$f":"IF(E48=5,TRUE,FALSE)","v":false}]
[null,null,null,null,null,{"$f":"IF(E48=6,TRUE,FALSE)","v":false}]
[null,"为达最大防灾力的行动","负责机构","时间跨度"]

{"sheet":"E07","index":9,"n_rows":43,"n_cols":9,"rows_kept":43,"cut":false,"hidden":false,"merged":[[4,1,4,3],[5,2,5,3],[6,2,6,3],[7,2,7,3],[17,1,17,3],[18,2,18,3],[8,2,13,3],[21,2,26,3],[34,2,39,3],[19,2,19,3],[20,2,20,3],[30,1,30,3],[31,2,31,3],[32,2,32,3],[33,2,33,3]]}
[]
[]
[null,"A7 公共卫生和社会能力的整合（要素7）",null,null,null,null,"A7",null,"公共卫生和社会能力的整合（要素7）"]
[null,null,null,null,null,null,""]
[null,"A7.1 灾害风险管理背景下公共卫生系统在社区参与中的有效性 ",null,null,null,null,"A7.1",null,"灾害风险管理背景下公共卫生系统在社区参与中的有效性 "]
[null,"问题","评论",null,null,null,""]
[null,null,null,null,null,null,""]
[null,"回应","提供验证方式（说明和凭据）",null,null,null,""]
[null,null,null,null,null,{"$f":"IF(E9=1,TRUE,FALSE)","v":false},""]
[null,null,null,null,null,{"$f":"IF(E9=2,TRUE,FALSE)","v":false},""]
[null,null,null,null,null,{"$f":"IF(E9=3,TRUE,FALSE)","v":false},""]
[null,null,null,null,null,{"$f":"IF(E9=4,TRUE,FALSE)","v":false},""]
[null,null,null,null,null,{"$f":"IF(E9=5,TRUE,FALSE)","v":false},""]
[null,null,null,null,null,{"$f":"IF(E9=6,TRUE,FALSE)","v":false},""]
[null,"为达最大防灾力的行动","负责机构","时间跨度",null,null,""]
[null,null,null,null,null,null,""]
[null,null,null,null,null,null,""]
[null,"A7.1.2 社区对公共卫生信息的获取和信任 ",null,null,null,null,"A7.1.2",null,"社区对公共卫生信息的获取和信任 "]
[null,"问题","评论",null,null,null,""]
[null,null,null,null,null,null,""]
[null,"回应","提供验证方式（说明和凭据）",null,null,null,""]
[null,null,null,null,null,{"$f":"IF(E22=1,TRUE,FALSE)","v":false},""]
[null,null,null,null,null,{"$f":"IF(E22=2,TRUE,FALSE)","v":false},""]
[null,null,null,null,null,{"$f":"IF(E22=3,TRUE,FALSE)","v":false},""]
[null,null,null,null,null,{"$f":"IF(E22=4,TRUE,FALSE)","v":false},""]
[null,null,null,null,null,{"$f":"IF(E22=5,TRUE,FALSE)","v":false},""]
[null,null,null,null,null,{"$f":"IF(E22=6,TRUE,FALSE)","v":false},""]
[null,"为达最大防灾力的行动","负责机构","时间跨度",null,null,""]
[null,null,null,null,null,null,""]
[null,null,null,null,null,null,""]
[null,"A7.2 社区“恢复正常”的能力 – 心理健康 ",null,null,null,null,"A7.2",null,"社区“恢复正常”的能力 – 心理健康 "]
[null,"问题","评论",null,null,null,""]
[null,null,null,null,null,null,""]
[null,"回应","提供验证方式（说明和凭据）",null,null,null,""]
[null,null,null,null,null,{"$f":"IF(E35=1,TRUE,FALSE)","v":false},""]
[null,null,null,null,null,{"$f":"IF(E35=2,TRUE,FALSE)","v":false},""]
[null,null,null,null,null,{"$f":"IF(E35=3,TRUE,FALSE)","v":false},""]
[null,null,null,null,null,{"$f":"IF(E35=4,TRUE,FALSE)","v":false},""]
[null,null,null,null,null,{"$f":"IF(E35=5,TRUE,FALSE)","v":false},""]
[null,null,null,null,null,{"$f":"IF(E35=6,TRUE,FALSE)","v":false},""]
[null,"为达最大防灾力的行动","负责机构","时间跨度",null,null,""]
[null,null,null,null,null,null,""]
[null,null,null,null,null,null,""]

{"sheet":"E08","index":10,"n_rows":43,"n_cols":9,"rows_kept":43,"cut":false,"hidden":false,"merged":[[34,2,39,3],[21,2,26,3],[8,2,13,3],[33,2,33,3],[4,1,4,3],[5,2,5,3],[6,2,6,3],[7,2,7,3],[17,1,17,3],[18,2,18,3],[19,2,19,3],[20,2,20,3],[30,1,30,3],[31,2,31,3],[32,2,32,3]]}
[]
[]
[null,"A8 公共卫生和基础设施恢复力的整合（要素8）",null,null,null,null,"A8",null,"公共卫生和基础设施恢复力的整合（要素8）"]
[null,null,null,null,null,null,""]
[null,"A8.1 加强要素8中未考虑的公共卫生基础设施项目的结构和非结构安全性与功能性 ",null,null,null,null,"A8.1",null,"加强要素8中未考虑的公共卫生基础设施项目的结构和非结构安全性与功能性 "]
[null,"问题","评论",null,null,null,""]
[null,null,null,null,null,null,""]
[null,"回应","提供验证方式（说明和凭据）",null,null,null,""]
[null,null,null,null,null,{"$f":"IF(E9=1,TRUE,FALSE)","v":false},""]
[null,null,null,null,null,{"$f":"IF(E9=2,TRUE,FALSE)","v":false},""]
[null,null,null,null,null,{"$f":"IF(E9=3,TRUE,FALSE)","v":false},""]
[null,null,null,null,null,{"$f":"IF(E9=4,TRUE,FALSE)","v":false},""]
[null,null,null,null,null,{"$f":"IF(E9=5,TRUE,FALSE)","v":false},""]
[null,null,null,null,null,{"$f":"IF(E9=6,TRUE,FALSE)","v":false},""]
[null,"为达最大防灾力的行动","负责机构","时间跨度",null,null,""]
[null,null,null,null,null,null,""]
[null,null,null,null,null,null,""]
[null,"A8.2 要素8中未考虑的公共卫生基础设施的过载能力 ",null,null,null,null,"A8.2",null,"要素8中未考虑的公共卫生基础设施的过载能力 "]
[null,"问题","评论",null,null,null,""]
[null,null,null,null,null,null,""]
[null,"回应","提供验证方式（说明和凭据）",null,null,null,""]
[null,null,null,null,null,{"$f":"IF(E22=1,TRUE,FALSE)","v":false},""]
[null,null,null,null,null,{"$f":"IF(E22=2,TRUE,FALSE)","v":false},""]
[null,null,null,null,null,{"$f":"IF(E22=3,TRUE,FALSE)","v":false},""]
[null,null,null,null,null,{"$f":"IF(E22=4,TRUE,FALSE)","v":false},""]
[null,null,null,null,null,{"$f":"IF(E22=5,TRUE,FALSE)","v":false},""]
[null,null,null,null,null,{"$f":"IF(E22=6,TRUE,FALSE)","v":false},""]
[null,"为达最大防灾力的行动","负责机构","时间跨度",null,null,""]
[null,null,null,null,null,null,""]
[null,null,null,null,null,null,""]
[null,"A8.3 在要素8中未考虑的那些已病人员的持续护理。",null,null,null,null,"A8.3",null,"在要素8中未考虑的那些已病人员的持续护理。"]
[null,"问题","评论",null,null,null,""]
[null,null,null,null,null,null,""]
[null,"回应","提供验证方式（说明和凭据）",null,null,null,""]
[null,null,null,null,null,{"$f":"IF(E35=1,TRUE,FALSE)","v":false},""]
[null,null,null,null,null,{"$f":"IF(E35=2,TRUE,FALSE)","v":false},""]
[null,null,null,null,null,{"$f":"IF(E35=3,TRUE,FALSE)","v":false},""]
[null,null,null,null,null,{"$f":"IF(E35=4,TRUE,FALSE)","v":false},""]
[null,null,null,null,null,{"$f":"IF(E35=5,TRUE,FALSE)","v":false},""]
[null,null,null,null,null,{"$f":"IF(E35=6,TRUE,FALSE)","v":false},""]
[null,"为达最大防灾力的行动","负责机构","时间跨度",null,null,""]
[null,null,null,null,null,null,""]
[null,null,null,null,null,null,""]

{"sheet":"E09","index":11,"n_rows":56,"n_cols":9,"rows_kept":56,"cut":false,"hidden":false,"merged":[[47,2,52,3],[34,2,39,3],[21,2,26,3],[30,1,30,3],[31,2,31,3],[32,2,32,3],[33,2,33,3],[43,1,43,3],[44,2,44,3],[45,2,45,3],[46,2,46,3],[19,2,19,3],[20,2,20,3],[4,1,4,3],[5,2,5,3],[6,2,6,3],[7,2,7,3],[17,1,17,3],[18,2,18,3],[8,2,13,3]]}
[]
[]
[null,"A9 公共卫生和灾害响应的整合（要素9）",null,null,null,null,"A9",null,"公共卫生和灾害响应的整合（要素9）"]
[null,null,null,null,null,null,""]
[null,"A9.1 与卫生相关的紧急情况的预警系统 ",null,null,null,null,"A9.1",null,"与卫生相关的紧急情况的预警系统 "]
[null,"问题","评论",null,null,null,""]
[null,null,null,null,null,null,""]
[null,"回应","提供验证方式（说明和凭据）",null,null,null,""]
[null,null,null,null,null,{"$f":"IF(E9=1,TRUE,FALSE)","v":false},""]
[null,null,null,null,null,{"$f":"IF(E9=2,TRUE,FALSE)","v":false},""]
[null,null,null,null,null,{"$f":"IF(E9=3,TRUE,FALSE)","v":false},""]
[null,null,null,null,null,{"$f":"IF(E9=4,TRUE,FALSE)","v":false},""]
[null,null,null,null,null,{"$f":"IF(E9=5,TRUE,FALSE)","v":false},""]
[null,null,null,null,null,{"$f":"IF(E9=6,TRUE,FALSE)","v":false},""]
[null,"为达最大防灾力的行动","负责机构","时间跨度",null,null,""]
[null,null,null,null,null,null,""]
[null,null,null,null,null,null,""]
[null,"A9.2 公共卫生和应急管理的整合 ",null,null,null,null,"A9.2",null,"公共卫生和应急管理的整合 "]
[null,"问题","评论",null,null,null,""]
[null,null,null,null,null,null,""]
[null,"回应","提供验证方式（说明和凭据）",null,null,null,""]
[null,null,null,null,null,{"$f":"IF(E22=1,TRUE,FALSE)","v":false},""]
[null,null,null,null,null,{"$f":"IF(E22=2,TRUE,FALSE)","v":false},""]
[null,null,null,null,null,{"$f":"IF(E22=3,TRUE,FALSE)","v":false},""]
[null,null,null,null,null,{"$f":"IF(E22=4,TRUE,FALSE)","v":false},""]
[null,null,null,null,null,{"$f":"IF(E22=5,TRUE,FALSE)","v":false},""]
[null,null,null,null,null,{"$f":"IF(E22=6,TRUE,FALSE)","v":false},""]
[null,"为达最大防灾力的行动","负责机构","时间跨度",null,null,""]
[null,null,null,null,null,null,""]
[null,null,null,null,null,null,""]
[null,"A9.3 对高风险人群或患有既往疾病、居住在家的人群的考虑 ",null,null,null,null,"A9.3",null,"对高风险人群或患有既往疾病、居住在家的人群的考虑 "]
[null,"问题","评论",null,null,null,""]
[null,null,null,null,null,null,""]
[null,"回应","提供验证方式（说明和凭据）",null,null,null,""]
[null,null,null,null,null,{"$f":"IF(E35=1,TRUE,FALSE)","v":false},""]
[null,null,null,null,null,{"$f":"IF(E35=2,TRUE,FALSE)","v":false},""]
[null,null,null,null,null,{"$f":"IF(E35=3,TRUE,FALSE)","v":false},""]
[null,null,null,null,null,{"$f":"IF(E35=4,TRUE,FALSE)","v":false},""]
[null,null,null,null,null,{"$f":"IF(E35=5,TRUE,FALSE)","v":false},""]
[null,null,null,null,null,{"$f":"IF(E35=6,TRUE,FALSE)","v":false},""]
[null,"为达最大防灾力的行动","负责机构","时间跨度",null,null,""]
[null,null,null,null,null,null,""]
[null,null,null,null,null,null,""]
[null,"A9.4 为有需要的人提供公共卫生用品的能力。",null,null,null,null,"A9.4",null,"为有需要的人提供公共卫生用品的能力。"]
[null,"问题","评论",null,null,null,""]
[null,null,null,null,null,null,""]
[null,"回应","提供验证方式（说明和凭据）",null,null,null,""]
[null,null,null,null,null,{"$f":"IF(E48=1,TRUE,FALSE)","v":false},""]
[null,null,null,null,null,{"$f":"IF(E48=2,TRUE,FALSE)","v":false},""]
[null,null,null,null,null,{"$f":"IF(E48=3,TRUE,FALSE)","v":false},""]
[null,null,null,null,null,{"$f":"IF(E48=4,TRUE,FALSE)","v":false},""]
[null,null,null,null,null,{"$f":"IF(E48=5,TRUE,FALSE)","v":false},""]
[null,null,null,null,null,{"$f":"IF(E48=6,TRUE,FALSE)","v":false},""]
[null,"为达最大防灾力的行动","负责机构","时间跨度",null,null,""]
[null,null,null,null,null,null,""]
[null,null,null,null,null,null,""]

{"sheet":"E10","index":12,"n_rows":28,"n_cols":9,"rows_kept":28,"cut":false,"hidden":false,"merged":[[4,1,4,3],[5,2,5,3],[6,2,6,3],[7,2,7,3],[17,1,17,3],[21,2,26,3],[8,2,13,3],[19,2,19,3],[20,2,20,3],[18,2,18,3]]}
[]
[]
[null,"A10 公共卫生和恢复/更好重建的整合（要素10）。",null,null,null,null,"A10",null,"公共卫生和恢复/更好重建的整合（要素10）。"]
[]
[null,"A10.1 减轻对公共卫生和幸福水平的长期影响",null,null,null,null,"A10.1",null,"减轻对公共卫生和幸福水平的长期影响"]
[null,"问题","评论"]
[]
[null,"回应","提供验证方式（说明和凭据）"]
[null,null,null,null,null,{"$f":"IF(E9=1,TRUE,FALSE)","v":false}]
[null,null,null,null,null,{"$f":"IF(E9=2,TRUE,FALSE)","v":false}]
[null,null,null,null,null,{"$f":"IF(E9=3,TRUE,FALSE)","v":false}]
[null,null,null,null,null,{"$f":"IF(E9=4,TRUE,FALSE)","v":false}]
[null,null,null,null,null,{"$f":"IF(E9=5,TRUE,FALSE)","v":false}]
[null,null,null,null,null,{"$f":"IF(E9=6,TRUE,FALSE)","v":false}]
[null,"为达最大防灾力的行动","负责机构","时间跨度"]
[]
[]
[null,"A10.2 学习与改善 ",null,null,null,null,"A10.2",null,"学习与改善 "]
[null,"问题","评论"]
[]
[null,"回应","提供验证方式（说明和凭据）"]
[null,null,null,null,null,{"$f":"IF(E22=1,TRUE,FALSE)","v":false}]
[null,null,null,null,null,{"$f":"IF(E22=2,TRUE,FALSE)","v":false}]
[null,null,null,null,null,{"$f":"IF(E22=3,TRUE,FALSE)","v":false}]
[null,null,null,null,null,{"$f":"IF(E22=4,TRUE,FALSE)","v":false}]
[null,null,null,null,null,{"$f":"IF(E22=5,TRUE,FALSE)","v":false}]
[null,null,null,null,null,{"$f":"IF(E22=6,TRUE,FALSE)","v":false}]
[null,"为达最大防灾力的行动","负责机构","时间跨度"]

{"sheet":"About","index":13,"n_rows":0,"n_cols":0,"rows_kept":0,"cut":false,"hidden":false,"merged":[]}